[Event "Early-Titled-Tuesday-Blitz-January-16-2024"]
[Site "Chess.com"]
[Date "2024.01.16"]
[Round "3"]
[White "jinbojinbo"]
[Black "platy3"]
[Result "0-1"]
[WhiteElo "2634"]
[BlackElo "2884"]
[TimeControl "180+1"]
[EndTime "8:28:30 PST"]
[Termination "platy3 won by resignation"]

1. e4 {[%clk 0:03:00.9]} 1... c5 {[%clk 0:02:59.2]} 2. Nf3 {[%clk 0:03:00.8]}
2... e6 {[%clk 0:03:00]} 3. d4 {[%clk 0:03:01]} 3... cxd4 {[%clk 0:03:00.9]} 4.
Nxd4 {[%clk 0:03:01.7]} 4... Nc6 {[%clk 0:03:01.5]} 5. Nc3 {[%clk 0:03:01.4]}
5... Qc7 {[%clk 0:03:01.5]} 6. Be3 {[%clk 0:02:58.1]} 6... a6 {[%clk 0:03:01.2]}
7. Be2 {[%clk 0:02:58.1]} 7... Nf6 {[%clk 0:03:01]} 8. O-O {[%clk 0:02:57.3]}
8... Be7 {[%clk 0:03:01.3]} 9. f4 {[%clk 0:02:57.2]} 9... d6 {[%clk 0:03:01.6]}
10. Kh1 {[%clk 0:02:54.5]} 10... O-O {[%clk 0:03:00.5]} 11. Qe1 {[%clk
0:02:54.8]} 11... Nxd4 {[%clk 0:03:00.3]} 12. Bxd4 {[%clk 0:02:55.7]} 12... b5
{[%clk 0:03:01]} 13. a3 {[%clk 0:02:54.4]} 13... Bb7 {[%clk 0:03:01.5]} 14. Qg3
{[%clk 0:02:54.8]} 14... Bc6 {[%clk 0:03:01.6]} 15. Rae1 {[%clk 0:02:53.8]}
15... Qb7 {[%clk 0:03:01.1]} 16. Bd3 {[%clk 0:02:51.8]} 16... b4 {[%clk
0:03:01.5]} 17. Nd1 {[%clk 0:02:51.8]} 17... a5 {[%clk 0:03:00.5]} 18. Nf2
{[%clk 0:02:40]} 18... Nh5 {[%clk 0:02:28.6]} 19. Qg4 {[%clk 0:02:39.4]} 19...
g6 {[%clk 0:02:28.6]} 20. f5 {[%clk 0:02:17.6]} 20... e5 {[%clk 0:02:06.8]} 21.
Be3 {[%clk 0:02:09.8]} 21... Nf6 {[%clk 0:02:06.5]} 22. Qh3 {[%clk 0:02:05.3]}
22... d5 {[%clk 0:01:36.7]} 23. exd5 {[%clk 0:01:23.5]} 23... Bxd5 {[%clk
0:01:37.6]} 24. Bh6 {[%clk 0:01:23.1]} 24... Rfe8 {[%clk 0:01:37.6]} 25. fxg6
{[%clk 0:00:54.9]} 25... hxg6 {[%clk 0:01:23.3]} 26. Bg5 {[%clk 0:00:37]} 26...
Nh7 {[%clk 0:01:14.3]} 27. Bxe7 {[%clk 0:00:36.5]} 27... Rxe7 {[%clk 0:01:15.2]}
28. Ne4 {[%clk 0:00:35.7]} 28... f5 {[%clk 0:01:06.5]} 29. Nd6 {[%clk 0:00:22]}
29... Qc6 {[%clk 0:01:06.6]} 30. Nxf5 {[%clk 0:00:21]} 30... gxf5 {[%clk
0:01:07.5]} 31. Bxf5 {[%clk 0:00:11.4]} 31... Rg7 {[%clk 0:01:07.1]} 32. Rf2
{[%clk 0:00:07.9]} 32... Ng5 {[%clk 0:01:00.4]} 33. Qh5 {[%clk 0:00:07.1]} 33...
Rf8 {[%clk 0:00:55.8]} 34. Ref1 {[%clk 0:00:05.6]} 34... Rxf5 {[%clk 0:00:49.7]}
35. Rxf5 {[%clk 0:00:05.8]} 35... Bxg2+ {[%clk 0:00:49.9]} 36. Kg1 {[%clk
0:00:06.1]} 36... Nh3+ {[%clk 0:00:50.5]} 0-1

[Event "Early-Titled-Tuesday-Blitz-January-16-2024"]
[Site "Chess.com"]
[Date "2024.01.16"]
[Round "3"]
[White "ilushka"]
[Black "PolandHussars"]
[Result "0-1"]
[WhiteElo "2342"]
[BlackElo "2586"]
[TimeControl "180+1"]
[EndTime "8:28:30 PST"]
[Termination "PolandHussars won on time"]

1. Nf3 {[%clk 0:03:00.9]} 1... d5 {[%clk 0:02:59.7]} 2. g3 {[%clk 0:03:00.9]}
2... Nc6 {[%clk 0:02:55.5]} 3. d4 {[%clk 0:03:00.4]} 3... Bf5 {[%clk 0:02:51.6]}
4. Bg2 {[%clk 0:03:00.8]} 4... Qd7 {[%clk 0:02:52.1]} 5. c4 {[%clk 0:03:00.3]}
5... dxc4 {[%clk 0:02:40.7]} 6. Qa4 {[%clk 0:03:00.5]} 6... Nf6 {[%clk
0:02:26.1]} 7. Qxc4 {[%clk 0:02:56.3]} 7... e6 {[%clk 0:02:17.8]} 8. O-O {[%clk
0:02:53.8]} 8... Rd8 {[%clk 0:02:08.8]} 9. Rd1 {[%clk 0:02:50.5]} 9... Be7
{[%clk 0:01:44.9]} 10. Nc3 {[%clk 0:02:49.7]} 10... Na5 {[%clk 0:01:43.1]} 11.
Qb5 {[%clk 0:02:41.8]} 11... Qxb5 {[%clk 0:01:40.7]} 12. Nxb5 {[%clk 0:02:42.7]}
12... c6 {[%clk 0:01:36.3]} 13. Nc3 {[%clk 0:02:35.5]} 13... O-O {[%clk
0:01:35.5]} 14. Bf4 {[%clk 0:02:32.7]} 14... Nc4 {[%clk 0:01:32]} 15. b3 {[%clk
0:02:29]} 15... Bb4 {[%clk 0:01:23.4]} 16. Na4 {[%clk 0:02:11.4]} 16... Nb6
{[%clk 0:01:22.7]} 17. Nxb6 {[%clk 0:01:53.7]} 17... axb6 {[%clk 0:01:23.6]} 18.
Bc7 {[%clk 0:01:43.4]} 18... Ra8 {[%clk 0:01:19.7]} 19. Rdc1 {[%clk 0:01:16.5]}
19... b5 {[%clk 0:01:15.9]} 20. Nh4 {[%clk 0:01:08.2]} 20... Be4 {[%clk
0:01:09.9]} 21. f3 {[%clk 0:01:02]} 21... Bg6 {[%clk 0:01:09.7]} 22. Nxg6 {[%clk
0:01:01.9]} 22... hxg6 {[%clk 0:01:10.6]} 23. e4 {[%clk 0:00:57.8]} 23... Bd2
{[%clk 0:01:07.4]} 24. Rd1 {[%clk 0:00:57.2]} 24... Bc3 {[%clk 0:00:54.9]} 25.
Rac1 {[%clk 0:00:56.4]} 25... Bb2 {[%clk 0:00:53.1]} 26. Rc2 {[%clk 0:00:56.4]}
26... Rxa2 {[%clk 0:00:53.1]} 27. Kf1 {[%clk 0:00:42.8]} 27... Ra1 {[%clk
0:00:52.7]} 28. Rxa1 {[%clk 0:00:41.2]} 28... Bxa1 {[%clk 0:00:53.6]} 29. Bb6
{[%clk 0:00:32.6]} 29... Ra8 {[%clk 0:00:52]} 30. Ke2 {[%clk 0:00:30.7]} 30...
Nd7 {[%clk 0:00:51.9]} 31. Bc5 {[%clk 0:00:13.7]} 31... Nxc5 {[%clk 0:00:52.1]}
32. dxc5 {[%clk 0:00:14.6]} 32... Ra3 {[%clk 0:00:51.9]} 33. b4 {[%clk
0:00:02.4]} 33... Bc3 {[%clk 0:00:46.1]} 0-1

[Event "Early-Titled-Tuesday-Blitz-January-16-2024"]
[Site "Chess.com"]
[Date "2024.01.16"]
[Round "3"]
[White "LuminaryHunter"]
[Black "CristianS27"]
[Result "0-1"]
[WhiteElo "2332"]
[BlackElo "2614"]
[TimeControl "180+1"]
[EndTime "8:28:33 PST"]
[Termination "CristianS27 won by resignation"]

1. e4 {[%clk 0:02:56.9]} 1... e5 {[%clk 0:02:59.6]} 2. Nc3 {[%clk 0:02:54]} 2...
Nf6 {[%clk 0:02:59.4]} 3. Nf3 {[%clk 0:02:48.3]} 3... Nc6 {[%clk 0:02:59.4]} 4.
Bb5 {[%clk 0:02:44.6]} 4... Bb4 {[%clk 0:02:58.8]} 5. O-O {[%clk 0:02:22.9]}
5... O-O {[%clk 0:02:58]} 6. Re1 {[%clk 0:02:13.3]} 6... d6 {[%clk 0:02:56.4]}
7. a3 {[%clk 0:02:07.6]} 7... Bc5 {[%clk 0:02:54]} 8. h3 {[%clk 0:02:03.1]} 8...
Nd4 {[%clk 0:02:51.4]} 9. Bc4 {[%clk 0:01:26.8]} 9... c6 {[%clk 0:02:48.3]} 10.
d3 {[%clk 0:01:17.1]} 10... a5 {[%clk 0:02:44.7]} 11. Bg5 {[%clk 0:01:15.3]}
11... h6 {[%clk 0:02:43.9]} 12. Bh4 {[%clk 0:01:12.8]} 12... Be6 {[%clk
0:02:43.3]} 13. Kh1 {[%clk 0:00:36.7]} 13... Bxc4 {[%clk 0:02:17.1]} 14. dxc4
{[%clk 0:00:36.8]} 14... Qe7 {[%clk 0:02:16.7]} 15. Nxd4 {[%clk 0:00:36.2]}
15... Bxd4 {[%clk 0:02:14.3]} 16. Qd3 {[%clk 0:00:30.1]} 16... Qe6 {[%clk
0:02:11.9]} 17. Bg3 {[%clk 0:00:18]} 17... Nh5 {[%clk 0:02:10.7]} 18. Bh2 {[%clk
0:00:18.3]} 18... Bxf2 {[%clk 0:01:58.7]} 19. Rf1 {[%clk 0:00:18.5]} 19... Bc5
{[%clk 0:01:58.8]} 20. Rf5 {[%clk 0:00:17]} 20... Qg6 {[%clk 0:01:56.1]} 21.
Raf1 {[%clk 0:00:15.6]} 21... Rae8 {[%clk 0:01:45.5]} 22. Qf3 {[%clk 0:00:15.1]}
22... Nf4 {[%clk 0:01:28.2]} 23. Bxf4 {[%clk 0:00:14.7]} 23... exf4 {[%clk
0:01:29.1]} 24. Rxf4 {[%clk 0:00:14]} 24... Bd4 {[%clk 0:01:27.3]} 25. Rg4
{[%clk 0:00:13.3]} 25... Qe6 {[%clk 0:01:25.3]} 26. Ne2 {[%clk 0:00:06.9]} 26...
Bxb2 {[%clk 0:01:25.3]} 27. c3 {[%clk 0:00:07.1]} 27... f5 {[%clk 0:01:19.9]}
28. Nd4 {[%clk 0:00:05.6]} 28... fxg4 {[%clk 0:01:10.6]} 29. Qxf8+ {[%clk
0:00:05.5]} 29... Rxf8 {[%clk 0:01:11.5]} 30. Rxf8+ {[%clk 0:00:05.6]} 30...
Kxf8 {[%clk 0:01:12.4]} 31. Nxe6+ {[%clk 0:00:06.1]} 31... Ke7 {[%clk
0:01:13.3]} 32. Nxg7 {[%clk 0:00:04.3]} 32... gxh3 {[%clk 0:01:11.4]} 33. gxh3
{[%clk 0:00:04.3]} 33... Kf6 {[%clk 0:01:02.4]} 34. Nf5 {[%clk 0:00:03.7]} 34...
Ke5 {[%clk 0:00:53.8]} 35. Nxh6 {[%clk 0:00:03.4]} 35... Bxa3 {[%clk 0:00:53.9]}
36. Kg2 {[%clk 0:00:02.2]} 36... Bc1 {[%clk 0:00:53.4]} 37. Kf3 {[%clk
0:00:02.4]} 37... Bxh6 {[%clk 0:00:52.9]} 0-1

[Event "Early-Titled-Tuesday-Blitz-January-16-2024"]
[Site "Chess.com"]
[Date "2024.01.16"]
[Round "3"]
[White "deepfear"]
[Black "Mikhail_Golubev"]
[Result "0-1"]
[WhiteElo "1931"]
[BlackElo "2545"]
[TimeControl "180+1"]
[EndTime "8:28:33 PST"]
[Termination "Mikhail_Golubev won on time"]

1. e4 {[%clk 0:02:56.8]} 1... c5 {[%clk 0:02:58.9]} 2. Nc3 {[%clk 0:02:55.2]}
2... Nc6 {[%clk 0:02:58]} 3. f4 {[%clk 0:02:50]} 3... g6 {[%clk 0:02:54.8]} 4.
Bc4 {[%clk 0:02:48.6]} 4... Bg7 {[%clk 0:02:53.8]} 5. Nf3 {[%clk 0:02:29.9]}
5... e6 {[%clk 0:02:51.8]} 6. f5 {[%clk 0:02:20.1]} 6... Nge7 {[%clk 0:02:40.3]}
7. fxg6 {[%clk 0:02:18.8]} 7... hxg6 {[%clk 0:02:26]} 8. d3 {[%clk 0:02:11]}
8... d5 {[%clk 0:02:23.4]} 9. Bb5 {[%clk 0:02:06.8]} 9... d4 {[%clk 0:02:14]}
10. Bxc6+ {[%clk 0:02:06.7]} 10... Nxc6 {[%clk 0:02:14.1]} 11. Ne2 {[%clk
0:02:05.1]} 11... e5 {[%clk 0:02:06.6]} 12. Bg5 {[%clk 0:01:52.4]} 12... f6
{[%clk 0:02:04.6]} 13. Bh4 {[%clk 0:01:36.1]} 13... Bg4 {[%clk 0:01:54.7]} 14.
Bg3 {[%clk 0:01:05.2]} 14... Qd7 {[%clk 0:01:54.5]} 15. Rf1 {[%clk 0:00:49.4]}
15... O-O-O {[%clk 0:01:47.9]} 16. a4 {[%clk 0:00:40.1]} 16... Bh6 {[%clk
0:01:35]} 17. a5 {[%clk 0:00:33.9]} 17... Be3 {[%clk 0:01:25]} 18. h3 {[%clk
0:00:25.8]} 18... Bh5 {[%clk 0:01:14.7]} 19. Neg1 {[%clk 0:00:17.4]} 19... f5
{[%clk 0:01:08.2]} 20. Bf2 {[%clk 0:00:16.4]} 20... fxe4 {[%clk 0:00:57.6]} 21.
dxe4 {[%clk 0:00:17.3]} 21... Bxf3 {[%clk 0:00:44.5]} 22. Nxf3 {[%clk 0:00:17]}
22... Bf4 {[%clk 0:00:42.6]} 23. Qd3 {[%clk 0:00:16.1]} 23... Qe6 {[%clk
0:00:33.4]} 24. a6 {[%clk 0:00:16.1]} 24... b6 {[%clk 0:00:30.1]} 25. b3 {[%clk
0:00:12.6]} 25... Nb4 {[%clk 0:00:27.9]} 26. Qe2 {[%clk 0:00:11.6]} 26... d3
{[%clk 0:00:28]} 27. Qd1 {[%clk 0:00:02.8]} 27... Nxc2+ {[%clk 0:00:26.8]} 0-1

[Event "Early-Titled-Tuesday-Blitz-January-16-2024"]
[Site "Chess.com"]
[Date "2024.01.16"]
[Round "3"]
[White "Happy1712Drummer"]
[Black "Ginger_GM"]
[Result "0-1"]
[WhiteElo "2478"]
[BlackElo "2680"]
[TimeControl "180+1"]
[EndTime "8:28:34 PST"]
[Termination "Ginger_GM won on time"]

1. d4 {[%clk 0:02:50.1]} 1... e6 {[%clk 0:02:59.7]} 2. Nf3 {[%clk 0:02:48.7]}
2... f5 {[%clk 0:02:59.5]} 3. g3 {[%clk 0:02:48.4]} 3... Nf6 {[%clk 0:02:59.7]}
4. Bg2 {[%clk 0:02:45.6]} 4... Be7 {[%clk 0:02:59.9]} 5. O-O {[%clk 0:02:46.3]}
5... O-O {[%clk 0:02:59.8]} 6. b3 {[%clk 0:02:44.6]} 6... Ne4 {[%clk 0:02:57.8]}
7. Bb2 {[%clk 0:02:43.6]} 7... Bf6 {[%clk 0:02:57.7]} 8. c4 {[%clk 0:02:40.8]}
8... d6 {[%clk 0:02:54.5]} 9. Qc2 {[%clk 0:02:39.8]} 9... Nc6 {[%clk 0:02:53.1]}
10. Nbd2 {[%clk 0:02:34.4]} 10... Nxd2 {[%clk 0:02:51.5]} 11. Qxd2 {[%clk
0:02:27.3]} 11... e5 {[%clk 0:02:51.7]} 12. dxe5 {[%clk 0:02:14.9]} 12... dxe5
{[%clk 0:02:51.6]} 13. Rad1 {[%clk 0:02:02.8]} 13... Qe7 {[%clk 0:02:46.3]} 14.
Qc1 {[%clk 0:01:58.4]} 14... a5 {[%clk 0:02:44.5]} 15. Ba3 {[%clk 0:01:47.4]}
15... Nb4 {[%clk 0:02:44.1]} 16. e4 {[%clk 0:01:32.7]} 16... f4 {[%clk
0:02:13.2]} 17. gxf4 {[%clk 0:01:31.5]} 17... exf4 {[%clk 0:02:13.3]} 18. Qxf4
{[%clk 0:01:28.3]} 18... Bb2 {[%clk 0:02:00.9]} 19. Bxb4 {[%clk 0:01:26]} 19...
axb4 {[%clk 0:02:01]} 20. Qd2 {[%clk 0:01:13.6]} 20... Bc3 {[%clk 0:01:46.5]}
21. Qd5+ {[%clk 0:01:07.8]} 21... Kh8 {[%clk 0:01:41.5]} 22. e5 {[%clk
0:00:22.9]} 22... Rxa2 {[%clk 0:01:34.4]} 23. Nd4 {[%clk 0:00:18.8]} 23... Ra6
{[%clk 0:01:21.6]} 24. Rd3 {[%clk 0:00:15.7]} 24... Rh6 {[%clk 0:01:17.1]} 25.
f4 {[%clk 0:00:10.7]} 25... c6 {[%clk 0:01:16.7]} 26. Qe4 {[%clk 0:00:10.5]}
26... Qc5 {[%clk 0:01:12.8]} 27. Kh1 {[%clk 0:00:10.5]} 27... Rh4 {[%clk
0:01:10.6]} 28. Ne2 {[%clk 0:00:07.5]} 28... Bf5 {[%clk 0:01:09.6]} 29. Qe3
{[%clk 0:00:06.6]} 29... Qe7 {[%clk 0:00:59.2]} 30. Rd6 {[%clk 0:00:06]} 30...
Re8 {[%clk 0:00:56.1]} 31. Qc5 {[%clk 0:00:03.3]} 31... Rh5 {[%clk 0:00:39.1]}
32. Ng3 {[%clk 0:00:02.1]} 32... Qh4 {[%clk 0:00:36]} 0-1

[Event "Early-Titled-Tuesday-Blitz-January-16-2024"]
[Site "Chess.com"]
[Date "2024.01.16"]
[Round "3"]
[White "mishanick"]
[Black "DrVitman"]
[Result "1-0"]
[WhiteElo "3085"]
[BlackElo "2782"]
[TimeControl "180+1"]
[EndTime "8:28:39 PST"]
[Termination "mishanick won by resignation"]

1. d4 {[%clk 0:03:00.9]} 1... Nf6 {[%clk 0:02:57.3]} 2. c4 {[%clk 0:03:01.6]}
2... d6 {[%clk 0:02:54.8]} 3. Nc3 {[%clk 0:03:02.1]} 3... e5 {[%clk 0:02:53.5]}
4. Nf3 {[%clk 0:03:02.6]} 4... Nc6 {[%clk 0:02:51.1]} 5. d5 {[%clk 0:03:02]}
5... Ne7 {[%clk 0:02:49.7]} 6. e4 {[%clk 0:03:02.5]} 6... Ng6 {[%clk 0:02:47.9]}
7. g3 {[%clk 0:03:02.8]} 7... Be7 {[%clk 0:02:46.5]} 8. h3 {[%clk 0:02:58]} 8...
O-O {[%clk 0:02:45.1]} 9. Be3 {[%clk 0:02:58.5]} 9... a5 {[%clk 0:02:41.8]} 10.
Bd3 {[%clk 0:02:58.1]} 10... Nd7 {[%clk 0:02:39]} 11. Qe2 {[%clk 0:02:53]} 11...
Nc5 {[%clk 0:02:38.5]} 12. Bc2 {[%clk 0:02:51.8]} 12... b6 {[%clk 0:02:30.6]}
13. O-O-O {[%clk 0:02:42.7]} 13... f5 {[%clk 0:02:22.1]} 14. exf5 {[%clk
0:02:42]} 14... Bxf5 {[%clk 0:02:23]} 15. Bxf5 {[%clk 0:02:38.5]} 15... Rxf5
{[%clk 0:02:21.9]} 16. h4 {[%clk 0:02:38.8]} 16... h6 {[%clk 0:02:12.3]} 17. Nd2
{[%clk 0:02:38.2]} 17... Qd7 {[%clk 0:01:57.3]} 18. Qg4 {[%clk 0:02:33.1]} 18...
Kh7 {[%clk 0:01:53.2]} 19. Nde4 {[%clk 0:02:24.9]} 19... Rf7 {[%clk 0:01:32.2]}
20. Qxd7 {[%clk 0:01:57.3]} 20... Nxd7 {[%clk 0:01:33.1]} 21. Nb5 {[%clk
0:01:56.5]} 21... Bd8 {[%clk 0:01:23.8]} 22. Kc2 {[%clk 0:01:47.8]} 22... Nf6
{[%clk 0:01:23.3]} 23. Kd3 {[%clk 0:01:43.4]} 23... Nxe4 {[%clk 0:01:21.2]} 24.
Kxe4 {[%clk 0:01:44.3]} 24... Ne7 {[%clk 0:01:18.9]} 25. b3 {[%clk 0:01:34.8]}
25... Ng8 {[%clk 0:01:18.4]} 26. Kd3 {[%clk 0:01:33.1]} 26... g6 {[%clk
0:01:13.7]} 27. h5 {[%clk 0:01:31.7]} 27... g5 {[%clk 0:01:11.8]} 28. Nc3 {[%clk
0:01:31.9]} 28... Nf6 {[%clk 0:01:06.1]} 29. Ne4 {[%clk 0:01:32.5]} 29... Nxe4
{[%clk 0:01:03.8]} 30. Kxe4 {[%clk 0:01:33.4]} 30... g4 {[%clk 0:00:59.8]} 31.
a3 {[%clk 0:01:14.1]} 31... Bg5 {[%clk 0:00:57.6]} 32. Ra1 {[%clk 0:01:12.1]}
32... Bxe3 {[%clk 0:00:55.1]} 33. fxe3 {[%clk 0:01:12.1]} 33... Rf3 {[%clk
0:00:53.3]} 34. Rag1 {[%clk 0:01:12]} 34... Rg8 {[%clk 0:00:47.2]} 35. Rg2
{[%clk 0:01:10.3]} 35... Rg5 {[%clk 0:00:43.6]} 36. b4 {[%clk 0:01:08.8]} 36...
axb4 {[%clk 0:00:44.5]} 37. axb4 {[%clk 0:01:09.5]} 37... Rff5 {[%clk
0:00:42.1]} 38. Rh4 {[%clk 0:01:04.9]} 38... Rf1 {[%clk 0:00:40.3]} 39. Rhh2
{[%clk 0:00:52.8]} 39... Rff5 {[%clk 0:00:37.2]} 40. Rf2 {[%clk 0:00:51.1]}
40... Rxf2 {[%clk 0:00:36.1]} 41. Rxf2 {[%clk 0:00:52]} 41... Kg7 {[%clk
0:00:36.3]} 42. Rf5 {[%clk 0:00:48.2]} 42... Rxf5 {[%clk 0:00:23.6]} 43. Kxf5
{[%clk 0:00:49.1]} 43... Kf7 {[%clk 0:00:23.7]} 44. b5 {[%clk 0:00:40.3]} 1-0

[Event "Early-Titled-Tuesday-Blitz-January-16-2024"]
[Site "Chess.com"]
[Date "2024.01.16"]
[Round "3"]
[White "BelyakovBogdan"]
[Black "wadsy27"]
[Result "1-0"]
[WhiteElo "2465"]
[BlackElo "2629"]
[TimeControl "180+1"]
[EndTime "8:28:42 PST"]
[Termination "BelyakovBogdan won on time"]

1. e4 {[%clk 0:03:00.1]} 1... e6 {[%clk 0:03:00]} 2. d4 {[%clk 0:02:59.9]} 2...
d5 {[%clk 0:03:00.2]} 3. Nc3 {[%clk 0:03:00.3]} 3... Bb4 {[%clk 0:03:00.5]} 4.
e5 {[%clk 0:02:58]} 4... c5 {[%clk 0:03:00.5]} 5. Bd2 {[%clk 0:02:58.2]} 5...
Ne7 {[%clk 0:02:59.3]} 6. a3 {[%clk 0:02:51.5]} 6... Bxc3 {[%clk 0:02:56.6]} 7.
Bxc3 {[%clk 0:02:52.4]} 7... cxd4 {[%clk 0:02:50.8]} 8. Qxd4 {[%clk 0:02:52.3]}
8... Nbc6 {[%clk 0:02:49.9]} 9. Qg4 {[%clk 0:02:51.8]} 9... Ng6 {[%clk
0:02:49.3]} 10. f4 {[%clk 0:02:51.1]} 10... h5 {[%clk 0:02:37.5]} 11. Qg3 {[%clk
0:02:47.9]} 11... Qh4 {[%clk 0:02:36.2]} 12. Nf3 {[%clk 0:02:42.7]} 12... Qxf4
{[%clk 0:02:33.4]} 13. Bd3 {[%clk 0:02:37.6]} 13... Qxg3+ {[%clk 0:01:56.4]} 14.
hxg3 {[%clk 0:02:38.5]} 14... Nge7 {[%clk 0:01:53.3]} 15. g4 {[%clk 0:02:36.1]}
15... g6 {[%clk 0:01:51.8]} 16. gxh5 {[%clk 0:02:35.6]} 16... Rxh5 {[%clk
0:01:49.6]} 17. Rxh5 {[%clk 0:02:35]} 17... gxh5 {[%clk 0:01:50.5]} 18. Kf2
{[%clk 0:02:28.1]} 18... Bd7 {[%clk 0:01:41.6]} 19. Rh1 {[%clk 0:02:25.2]} 19...
d4 {[%clk 0:01:18.9]} 20. Bxd4 {[%clk 0:02:18.3]} 20... Nxd4 {[%clk 0:01:08.6]}
21. Nxd4 {[%clk 0:02:19.2]} 21... O-O-O {[%clk 0:00:59.3]} 22. Rxh5 {[%clk
0:02:17.7]} 22... Bc6 {[%clk 0:00:58.9]} 23. c3 {[%clk 0:02:10.7]} 23... Rg8
{[%clk 0:00:57.4]} 24. g3 {[%clk 0:02:05.1]} 24... Kd7 {[%clk 0:00:48.7]} 25. c4
{[%clk 0:01:57.2]} 25... Rg4 {[%clk 0:00:38.9]} 26. Rh4 {[%clk 0:01:53.2]} 26...
Rg5 {[%clk 0:00:33.5]} 27. Rh7 {[%clk 0:01:50.4]} 27... Ke8 {[%clk 0:00:23.6]}
28. Rh8+ {[%clk 0:01:50.1]} 28... Kd7 {[%clk 0:00:19.3]} 29. Rh7 {[%clk
0:01:46.2]} 29... Ke8 {[%clk 0:00:18.9]} 30. b4 {[%clk 0:01:35.9]} 30... Rxe5
{[%clk 0:00:17]} 31. b5 {[%clk 0:01:28.6]} 31... Be4 {[%clk 0:00:17]} 32. Rh8+
{[%clk 0:01:28.4]} 32... Kd7 {[%clk 0:00:16.9]} 33. Be2 {[%clk 0:01:25]} 33...
Nf5 {[%clk 0:00:08.8]} 34. Nxf5 {[%clk 0:01:24.1]} 34... Rxf5+ {[%clk
0:00:07.5]} 35. Ke3 {[%clk 0:01:24.2]} 35... Bg2 {[%clk 0:00:06]} 36. Ra8 {[%clk
0:01:19.9]} 36... a6 {[%clk 0:00:04.3]} 37. bxa6 {[%clk 0:01:19.7]} 37... bxa6
{[%clk 0:00:04.8]} 38. Rxa6 {[%clk 0:01:15.7]} 38... Re5+ {[%clk 0:00:04.5]} 39.
Kf2 {[%clk 0:01:15.4]} 39... f5 {[%clk 0:00:02.6]} 40. Bh5 {[%clk 0:01:05.9]}
40... Bc6 {[%clk 0:00:02.5]} 41. Bf7 {[%clk 0:01:04.7]} 41... Kc7 {[%clk
0:00:01.9]} 42. Ra7+ {[%clk 0:01:00.8]} 42... Kb6 {[%clk 0:00:01.4]} 43. Re7
{[%clk 0:01:00.8]} 1-0

[Event "Early-Titled-Tuesday-Blitz-January-16-2024"]
[Site "Chess.com"]
[Date "2024.01.16"]
[Round "3"]
[White "falzehope0"]
[Black "chucksterf10"]
[Result "0-1"]
[WhiteElo "2385"]
[BlackElo "2654"]
[TimeControl "180+1"]
[EndTime "8:28:44 PST"]
[Termination "chucksterf10 won on time"]

1. d4 {[%clk 0:02:52.4]} 1... a6 {[%clk 0:03:00.9]} 2. e3 {[%clk 0:02:52]} 2...
b5 {[%clk 0:02:58.1]} 3. f4 {[%clk 0:02:51.8]} 3... Bb7 {[%clk 0:02:58]} 4. Nf3
{[%clk 0:02:51.8]} 4... e6 {[%clk 0:02:57.4]} 5. Bd3 {[%clk 0:02:49.8]} 5... c5
{[%clk 0:02:57.5]} 6. c3 {[%clk 0:02:48.7]} 6... Nf6 {[%clk 0:02:57]} 7. Nbd2
{[%clk 0:02:48.3]} 7... Nc6 {[%clk 0:02:56.3]} 8. O-O {[%clk 0:02:47.8]} 8...
Rc8 {[%clk 0:02:56.2]} 9. a3 {[%clk 0:02:45.7]} 9... d6 {[%clk 0:02:53.2]} 10.
e4 {[%clk 0:02:41.6]} 10... cxd4 {[%clk 0:02:52.6]} 11. cxd4 {[%clk 0:02:41.5]}
11... Qb6 {[%clk 0:02:53.3]} 12. Nb3 {[%clk 0:02:34]} 12... d5 {[%clk
0:02:42.4]} 13. e5 {[%clk 0:02:33.5]} 13... Ne4 {[%clk 0:02:42.3]} 14. Kh1
{[%clk 0:02:32.6]} 14... h5 {[%clk 0:02:34.5]} 15. Be3 {[%clk 0:02:28.9]} 15...
h4 {[%clk 0:02:33.9]} 16. Qe2 {[%clk 0:02:16.8]} 16... Ne7 {[%clk 0:02:23.3]}
17. Bxe4 {[%clk 0:02:03.2]} 17... dxe4 {[%clk 0:02:23.2]} 18. Ng5 {[%clk
0:02:03]} 18... Nf5 {[%clk 0:02:21.8]} 19. Rac1 {[%clk 0:01:55.9]} 19... Rxc1
{[%clk 0:02:15.1]} 20. Rxc1 {[%clk 0:01:55]} 20... Be7 {[%clk 0:02:13.5]} 21.
Nh3 {[%clk 0:01:53.8]} 21... O-O {[%clk 0:02:05.8]} 22. Nc5 {[%clk 0:01:52]}
22... Rd8 {[%clk 0:01:56.6]} 23. Qf2 {[%clk 0:01:30.2]} 23... Bd5 {[%clk
0:01:41.5]} 24. b4 {[%clk 0:01:28.1]} 24... a5 {[%clk 0:01:41.5]} 25. Ng1 {[%clk
0:01:18.2]} 25... axb4 {[%clk 0:01:38.3]} 26. axb4 {[%clk 0:01:18]} 26... Ra8
{[%clk 0:01:37.4]} 27. Rc2 {[%clk 0:00:46]} 27... Ra1 {[%clk 0:01:34.9]} 28. h3
{[%clk 0:00:45.5]} 28... Ng3+ {[%clk 0:01:09.2]} 29. Kh2 {[%clk 0:00:45.3]}
29... Rf1 {[%clk 0:01:10.1]} 30. Qd2 {[%clk 0:00:41.4]} 30... Rxf4 {[%clk
0:01:04]} 31. Bxf4 {[%clk 0:00:13.3]} 31... Nf1+ {[%clk 0:01:04.2]} 32. Kh1
{[%clk 0:00:13.4]} 32... Nxd2 {[%clk 0:01:05.1]} 33. Bxd2 {[%clk 0:00:07.5]}
33... Qa7 {[%clk 0:01:02.9]} 34. Be3 {[%clk 0:00:06.2]} 34... Qa3 {[%clk
0:01:01.1]} 35. Rf2 {[%clk 0:00:05.7]} 35... Qxe3 {[%clk 0:01:00.7]} 36. Re2
{[%clk 0:00:02.7]} 36... Qxd4 {[%clk 0:00:59.7]} 37. Nd7 {[%clk 0:00:01.8]}
37... e3 {[%clk 0:00:48.7]} 38. Nc5 {[%clk 0:00:01.6]} 38... Bxc5 {[%clk
0:00:37.7]} 39. bxc5 {[%clk 0:00:01.4]} 39... b4 {[%clk 0:00:38.6]} 0-1